[Event "Titled Tuesday Blitz April 26 Late 2022"]
[White "Li, Ben"]
[Black "Tymrakiewicz, Rafal"]
[WhiteFideId "2089980"]
[BlackFideId "1108832"]
[WhiteElo "2267"]
[BlackElo "2205"]
[Result "1-0"]
[Round "01"]
[TimeControl "180+1"]
[Date "2022.04.26"]
[WhiteClock "0:00:27"]
[BlackClock "0:00:02"]

1. d4 {[%clk 0:03:00]}  Nf6 {[%clk 0:02:51]} 2. c4 {[%clk 0:02:59]}  g6 {[%clk 0:02:51]} 3. Nf3 {[%clk 0:02:55]}  Bg7 {[%clk 0:02:50]} 4. Nc3 {[%clk 0:02:49]}  O-O {[%clk 0:02:51]} 5. e4 {[%clk 0:02:49]}  d6 {[%clk 0:02:51]} 6. h3 {[%clk 0:02:44]}  c5 {[%clk 0:02:47]} 7. d5 {[%clk 0:02:38]}  e6 {[%clk 0:02:36]} 8. Bd3 {[%clk 0:02:37]}  Na6 {[%clk 0:02:30]} 9. O-O {[%clk 0:02:36]}  e5 {[%clk 0:02:28]} 10. Bg5 {[%clk 0:02:35]}  h6 {[%clk 0:02:27]} 11. Be3 {[%clk 0:02:34]}  Nh5 {[%clk 0:02:26]} 12. Re1 {[%clk 0:02:32]}  Kh7 {[%clk 0:02:24]} 13. Nd2 {[%clk 0:02:28]}  Nf4 {[%clk 0:02:20]} 14. Bf1 {[%clk 0:02:28]}  Nc7 {[%clk 0:02:20]} 15. a3 {[%clk 0:02:27]}  f5 {[%clk 0:02:10]} 16. exf5 {[%clk 0:02:27]}  gxf5 {[%clk 0:01:56]} 17. Bxf4 {[%clk 0:02:16]}  exf4 {[%clk 0:01:57]} 18. Nf3 {[%clk 0:02:10]}  Bd7 {[%clk 0:01:44]} 19. Qd2 {[%clk 0:01:56]}  Qf6 {[%clk 0:01:34]} 20. Qxf4 {[%clk 0:01:55]}  Rae8 {[%clk 0:01:34]} 21. Bd3 {[%clk 0:01:43]}  Kg8 {[%clk 0:01:26]} 22. Rxe8 {[%clk 0:01:16]}  Rxe8 {[%clk 0:01:24]} 23. Re1 {[%clk 0:01:17]}  Rxe1+ {[%clk 0:01:23]} 24. Nxe1 {[%clk 0:01:18]}  Qe5 {[%clk 0:01:17]} 25. Qd2 {[%clk 0:01:15]}  a6 {[%clk 0:00:58]} 26. Nf3 {[%clk 0:01:15]}  Qf6 {[%clk 0:00:57]} 27. a4 {[%clk 0:01:04]}  b6 {[%clk 0:00:38]} 28. Bc2 {[%clk 0:00:54]}  h5 {[%clk 0:00:19]} 29. Nd1 {[%clk 0:00:54]}  Bh6 {[%clk 0:00:18]} 30. Qe2 {[%clk 0:00:50]}  b5 {[%clk 0:00:18]} 31. axb5 {[%clk 0:00:50]}  axb5 {[%clk 0:00:19]} 32. b3 {[%clk 0:00:51]}  b4 {[%clk 0:00:18]} 33. Ne3 {[%clk 0:00:51]}  Ne8 {[%clk 0:00:18]} 34. Nxf5 {[%clk 0:00:48]}  Bf4 {[%clk 0:00:13]} 35. Ng3 {[%clk 0:00:45]}  Qa1+ {[%clk 0:00:13]} 36. Kh2 {[%clk 0:00:44]}  Qf6 {[%clk 0:00:09]} 37. Qe4 {[%clk 0:00:43]}  Ng7 {[%clk 0:00:08]} 38. Kg1 {[%clk 0:00:36]}  Kf7 {[%clk 0:00:07]} 39. Qh7 {[%clk 0:00:35]}  h4 {[%clk 0:00:07]} 40. Qxh4 {[%clk 0:00:34]}  Qa1+ {[%clk 0:00:06]} 41. Kh2 {[%clk 0:00:32]}  Qf6 {[%clk 0:00:05]} 42. Qxf6+ {[%clk 0:00:30]}  Kxf6 {[%clk 0:00:06]} 43. Kg1 {[%clk 0:00:31]}  Bxg3 {[%clk 0:00:06]} 44. fxg3 {[%clk 0:00:31]}  Nf5 {[%clk 0:00:05]} 45. Kf2 {[%clk 0:00:30]}  Nd4 {[%clk 0:00:04]} 46. Nxd4 {[%clk 0:00:30]}  cxd4 {[%clk 0:00:05]} 47. g4 {[%clk 0:00:31]}  Kg5 {[%clk 0:00:05]} 48. g3 {[%clk 0:00:30]}  Kf6 {[%clk 0:00:05]} 49. Kf3 {[%clk 0:00:30]}  Ke5 {[%clk 0:00:06]} 50. h4 {[%clk 0:00:30]}  Be8 {[%clk 0:00:06]} 51. g5 {[%clk 0:00:30]}  Bh5+ {[%clk 0:00:05]} 52. g4 {[%clk 0:00:30]}  Be8 {[%clk 0:00:05]} 53. h5 {[%clk 0:00:29]}  Bd7 {[%clk 0:00:04]} 54. g6 {[%clk 0:00:28]}  Kf6 {[%clk 0:00:04]} 55. Kf4 {[%clk 0:00:28]}  Kg7 {[%clk 0:00:04]} 56. g5 {[%clk 0:00:27]}  Kh8 {[%clk 0:00:03]} 57. h6 {[%clk 0:00:27]}  Bh3 {[%clk 0:00:03]} 58. g7+ {[%clk 0:00:27]}  Kg8 {[%clk 0:00:04]} 59. Bf5 {[%clk 0:00:26]}  Bxf5 {[%clk 0:00:03]} 60. Kxf5 {[%clk 0:00:27]}  Kh7 {[%clk 0:00:03]} 61. Kf6 {[%clk 0:00:27]}  d3 {[%clk 0:00:02]} 62. Kf7 {[%clk 0:00:27]} 1-0


[Site "https://www.chess.com"]

[Event "Titled Tuesday Blitz April 26 Late 2022"]
[White "Maghsoodloo, Parham"]
[Black "Omariev, Maksim"]
[WhiteFideId "12539929"]
[BlackFideId "4193423"]
[WhiteElo "2630"]
[BlackElo "2500"]
[Result "1-0"]
[Round "01"]
[TimeControl "180+1"]
[Date "2022.04.26"]
[WhiteClock "0:01:21"]
[BlackClock "0:00:03"]

1. d4 {[%clk 0:03:00]}  h5 {[%clk 0:01:15]} 2. e4 {[%clk 0:02:54]}  h4 {[%clk 0:01:16]} 3. h3 {[%clk 0:02:53]}  c6 {[%clk 0:01:16]} 4. c4 {[%clk 0:02:53]}  d5 {[%clk 0:01:16]} 5. cxd5 {[%clk 0:02:54]}  cxd5 {[%clk 0:01:17]} 6. exd5 {[%clk 0:02:54]}  Nf6 {[%clk 0:01:17]} 7. Bb5+ {[%clk 0:02:54]}  Nbd7 {[%clk 0:01:12]} 8. Nc3 {[%clk 0:02:54]}  a6 {[%clk 0:01:13]} 9. Ba4 {[%clk 0:02:52]}  b5 {[%clk 0:01:13]} 10. Bb3 {[%clk 0:02:53]}  Bb7 {[%clk 0:01:13]} 11. Bg5 {[%clk 0:02:44]}  b4 {[%clk 0:01:13]} 12. Na4 {[%clk 0:02:39]}  Nxd5 {[%clk 0:01:09]} 13. Nf3 {[%clk 0:02:39]}  Qa5 {[%clk 0:01:02]} 14. O-O {[%clk 0:02:30]}  e6 {[%clk 0:00:59]} 15. Rc1 {[%clk 0:02:13]}  Bd6 {[%clk 0:00:59]} 16. Re1 {[%clk 0:02:13]}  Kf8 {[%clk 0:00:37]} 17. Ne5 {[%clk 0:01:59]}  Nxe5 {[%clk 0:00:09]} 18. dxe5 {[%clk 0:01:59]}  Be7 {[%clk 0:00:10]} 19. Bxe7+ {[%clk 0:01:58]}  Kxe7 {[%clk 0:00:08]} 20. Nc5 {[%clk 0:01:49]}  Rab8 {[%clk 0:00:02]} 21. Qg4 {[%clk 0:01:47]}  g6 {[%clk 0:00:02]} 22. Qg5+ {[%clk 0:01:41]}  Ke8 {[%clk 0:00:02]} 23. Nxb7 {[%clk 0:01:38]}  Rh5 {[%clk 0:00:01]} 24. Nd6+ {[%clk 0:01:32]}  Kf8 {[%clk 0:00:01]} 25. Qg4 {[%clk 0:01:31]}  Qb6 {[%clk 0:00:01]} 26. Bxd5 {[%clk 0:01:29]}  exd5 {[%clk 0:00:02]} 27. Qf4 {[%clk 0:01:29]}  Kg7 {[%clk 0:00:02]} 28. Qf6+ {[%clk 0:01:27]}  Kh7 {[%clk 0:00:02]} 29. Qxf7+ {[%clk 0:01:26]}  Kh6 {[%clk 0:00:03]} 30. Rc7 {[%clk 0:01:24]}  Kg5 {[%clk 0:00:03]} 31. Re4 {[%clk 0:01:21]} 1-0


[Site "https://www.chess.com"]

[Event "Titled Tuesday Blitz April 26 Late 2022"]
[White "Maksimovic, Bojan"]
[Black "Miszler, Levente"]
[WhiteFideId "14408120"]
[BlackFideId "763276"]
[WhiteElo "2448"]
[BlackElo "1966"]
[Result "1-0"]
[Round "01"]
[TimeControl "180+1"]
[Date "2022.04.26"]
[WhiteClock "0:00:06"]
[BlackClock "0:00:06"]

1. e4 {[%clk 0:03:00]}  e6 {[%clk 0:02:55]} 2. d4 {[%clk 0:03:00]}  d5 {[%clk 0:02:56]} 3. Nc3 {[%clk 0:02:53]}  Nf6 {[%clk 0:02:54]} 4. Bg5 {[%clk 0:02:49]}  Be7 {[%clk 0:02:52]} 5. e5 {[%clk 0:02:49]}  Nfd7 {[%clk 0:02:51]} 6. Bxe7 {[%clk 0:02:48]}  Qxe7 {[%clk 0:02:52]} 7. Nb5 {[%clk 0:02:49]}  Nb6 {[%clk 0:02:34]} 8. c3 {[%clk 0:02:46]}  a6 {[%clk 0:02:32]} 9. Na3 {[%clk 0:02:46]}  c5 {[%clk 0:02:31]} 10. Nc2 {[%clk 0:02:46]}  Nc6 {[%clk 0:02:29]} 11. f4 {[%clk 0:02:46]}  Nd7 {[%clk 0:02:20]} 12. Nf3 {[%clk 0:02:46]}  O-O {[%clk 0:02:13]} 13. Bd3 {[%clk 0:02:33]}  c4 {[%clk 0:02:12]} 14. Be2 {[%clk 0:02:33]}  b5 {[%clk 0:02:11]} 15. Ne3 {[%clk 0:02:33]}  f5 {[%clk 0:02:08]} 16. O-O {[%clk 0:02:32]}  Kh8 {[%clk 0:02:06]} 17. Kh1 {[%clk 0:02:32]}  Rg8 {[%clk 0:02:06]} 18. Rg1 {[%clk 0:02:33]}  a5 {[%clk 0:02:05]} 19. g4 {[%clk 0:02:33]}  g6 {[%clk 0:02:05]} 20. gxf5 {[%clk 0:02:28]}  gxf5 {[%clk 0:02:05]} 21. Rxg8+ {[%clk 0:02:29]}  Kxg8 {[%clk 0:02:05]} 22. Qg1+ {[%clk 0:02:29]}  Kh8 {[%clk 0:02:06]} 23. Qg3 {[%clk 0:02:29]}  Bb7 {[%clk 0:02:02]} 24. Rg1 {[%clk 0:02:28]}  b4 {[%clk 0:01:59]} 25. Nh4 {[%clk 0:02:21]}  Qf7 {[%clk 0:01:56]} 26. Bh5 {[%clk 0:02:20]}  Qg8 {[%clk 0:01:53]} 27. Qh3 {[%clk 0:02:10]}  Qf8 {[%clk 0:01:49]} 28. Nhxf5 {[%clk 0:01:16]}  exf5 {[%clk 0:01:44]} 29. Bg6 {[%clk 0:01:16]}  h6 {[%clk 0:01:28]} 30. Bxf5 {[%clk 0:01:15]}  Ndxe5 {[%clk 0:01:24]} 31. fxe5 {[%clk 0:01:15]}  Nxe5 {[%clk 0:01:24]} 32. dxe5 {[%clk 0:01:08]}  d4+ {[%clk 0:01:23]} 33. Ng2 {[%clk 0:01:09]}  d3 {[%clk 0:01:16]} 34. e6 {[%clk 0:01:09]}  d2 {[%clk 0:01:13]} 35. Qg4 {[%clk 0:00:57]}  Qg7 {[%clk 0:01:01]} 36. Qxg7+ {[%clk 0:00:37]}  Kxg7 {[%clk 0:01:02]} 37. Rd1 {[%clk 0:00:37]}  Kf6 {[%clk 0:01:01]} 38. Bh3 {[%clk 0:00:36]}  Rd8 {[%clk 0:00:59]} 39. Kg1 {[%clk 0:00:31]}  Bf3 {[%clk 0:00:59]} 40. Ne3 {[%clk 0:00:25]}  Bxd1 {[%clk 0:00:58]} 41. Nxd1 {[%clk 0:00:26]}  b3 {[%clk 0:00:57]} 42. a4 {[%clk 0:00:20]}  Rd3 {[%clk 0:00:44]} 43. Bf1 {[%clk 0:00:20]}  Rf3 {[%clk 0:00:10]} 44. Bxc4 {[%clk 0:00:20]}  Rf4 {[%clk 0:00:08]} 45. Bxb3 {[%clk 0:00:19]}  Re4 {[%clk 0:00:08]} 46. Kf2 {[%clk 0:00:20]}  Re1 {[%clk 0:00:08]} 47. Bc2 {[%clk 0:00:14]}  Ke7 {[%clk 0:00:08]} 48. Ne3 {[%clk 0:00:10]}  Kd6 {[%clk 0:00:08]} 49. Nc4+ {[%clk 0:00:10]}  Ke7 {[%clk 0:00:08]} 50. Nxd2 {[%clk 0:00:11]}  Rc1 {[%clk 0:00:07]} 51. Bd3 {[%clk 0:00:09]}  Rd1 {[%clk 0:00:07]} 52. Ke2 {[%clk 0:00:10]}  Rh1 {[%clk 0:00:07]} 53. Nf3 {[%clk 0:00:10]}  Ra1 {[%clk 0:00:06]} 54. Bb5 {[%clk 0:00:09]}  Kd6 {[%clk 0:00:06]} 55. Bd7 {[%clk 0:00:09]}  Ke7 {[%clk 0:00:06]} 56. Nd4 {[%clk 0:00:08]}  Ra2 {[%clk 0:00:07]} 57. Nf5+ {[%clk 0:00:05]}  Kd8 {[%clk 0:00:06]} 58. Bb5 {[%clk 0:00:06]}  Rxb2+ {[%clk 0:00:06]} 59. Kd3 {[%clk 0:00:06]} 1-0


[Site "https://www.chess.com"]

[Event "Titled Tuesday Blitz April 26 Late 2022"]
[White "Mayaud, Raphael"]
[Black "Lin, Dachey"]
[WhiteFideId "627151"]
[BlackFideId "2029650"]
[WhiteElo "2191"]
[BlackElo "2313"]
[Result "0-1"]
[Round "01"]
[TimeControl "180+1"]
[Date "2022.04.26"]
[WhiteClock "0:01:46"]
[BlackClock "0:01:19"]

1. d4 {[%clk 0:02:59]}  g6 {[%clk 0:02:59]} 2. e4 {[%clk 0:02:59]}  Bg7 {[%clk 0:02:59]} 3. Nc3 {[%clk 0:02:59]}  d5 {[%clk 0:02:59]} 4. exd5 {[%clk 0:02:57]}  Nf6 {[%clk 0:02:59]} 5. Bc4 {[%clk 0:02:57]}  Nbd7 {[%clk 0:02:58]} 6. Qf3 {[%clk 0:02:51]}  Nb6 {[%clk 0:02:58]} 7. Bb3 {[%clk 0:02:48]}  Bg4 {[%clk 0:02:58]} 8. Qg3 {[%clk 0:02:47]}  Bf5 {[%clk 0:02:55]} 9. Nge2 {[%clk 0:02:42]}  Nbxd5 {[%clk 0:02:49]} 10. Nxd5 {[%clk 0:02:42]}  Nxd5 {[%clk 0:02:50]} 11. c3 {[%clk 0:02:33]}  O-O {[%clk 0:02:48]} 12. O-O {[%clk 0:02:33]}  c6 {[%clk 0:02:45]} 13. Nf4 {[%clk 0:02:30]}  a5 {[%clk 0:02:33]} 14. Nxd5 {[%clk 0:02:26]}  cxd5 {[%clk 0:02:34]} 15. a4 {[%clk 0:02:23]}  Re8 {[%clk 0:02:30]} 16. Re1 {[%clk 0:02:14]}  e6 {[%clk 0:02:10]} 17. h3 {[%clk 0:02:12]}  Qb6 {[%clk 0:02:06]} 18. Bd1 {[%clk 0:02:07]}  Rac8 {[%clk 0:02:06]} 19. Qe3 {[%clk 0:01:53]}  Rc6 {[%clk 0:01:48]} 20. g4 {[%clk 0:01:50]}  Be4 {[%clk 0:01:18]} 21. f3 {[%clk 0:01:50]}  e5 {[%clk 0:01:19]} 22. fxe4 {[%clk 0:01:48]}  exd4 {[%clk 0:01:19]} 23. cxd4 {[%clk 0:01:46]}  Bxd4 {[%clk 0:01:19]} 0-1


[Site "https://www.chess.com"]

[Event "Titled Tuesday Blitz April 26 Late 2022"]
[White "Melikhov, Evgeny V."]
[Black "Shuvalova, Polina"]
[WhiteFideId "4122046"]
[BlackFideId "24171760"]
[WhiteElo "1931"]
[BlackElo "2355"]
[Result "0-1"]
[Round "01"]
[TimeControl "180+1"]
[Date "2022.04.26"]
[WhiteClock "0:00:04"]
[BlackClock "0:00:30"]

1. d4 {[%clk 0:02:57]}  Nf6 {[%clk 0:02:59]} 2. c4 {[%clk 0:02:56]}  e6 {[%clk 0:02:56]} 3. Nc3 {[%clk 0:02:56]}  Bb4 {[%clk 0:02:53]} 4. Qc2 {[%clk 0:02:56]}  O-O {[%clk 0:02:52]} 5. e4 {[%clk 0:02:55]}  d6 {[%clk 0:02:44]} 6. e5 {[%clk 0:02:53]}  dxe5 {[%clk 0:02:42]} 7. dxe5 {[%clk 0:02:54]}  Nfd7 {[%clk 0:02:43]} 8. Nf3 {[%clk 0:02:54]}  Nc6 {[%clk 0:02:41]} 9. Bf4 {[%clk 0:02:53]}  Nc5 {[%clk 0:02:35]} 10. Rd1 {[%clk 0:02:47]}  Qe7 {[%clk 0:02:31]} 11. a3 {[%clk 0:02:42]}  Bxc3+ {[%clk 0:02:30]} 12. Qxc3 {[%clk 0:02:42]}  a5 {[%clk 0:02:26]} 13. b4 {[%clk 0:02:10]}  axb4 {[%clk 0:02:25]} 14. axb4 {[%clk 0:02:10]}  Ne4 {[%clk 0:02:23]} 15. Qb2 {[%clk 0:01:52]}  Qxb4+ {[%clk 0:02:18]} 16. Qxb4 {[%clk 0:01:52]}  Nxb4 {[%clk 0:02:19]} 17. Be2 {[%clk 0:01:41]}  Nc3 {[%clk 0:02:18]} 18. Bd2 {[%clk 0:01:36]}  Nc2+ {[%clk 0:02:12]} 19. Kf1 {[%clk 0:01:32]}  Nxd1 {[%clk 0:02:12]} 20. Bxd1 {[%clk 0:01:30]}  Ra1 {[%clk 0:02:04]} 21. Ke2 {[%clk 0:01:29]}  Rd8 {[%clk 0:02:04]} 22. Rf1 {[%clk 0:01:24]}  Nd4+ {[%clk 0:02:01]} 23. Nxd4 {[%clk 0:01:24]}  Rxd4 {[%clk 0:02:02]} 24. Bc3 {[%clk 0:01:12]}  Ra2+ {[%clk 0:02:01]} 25. Ke3 {[%clk 0:01:09]}  Rxc4 {[%clk 0:02:02]} 26. Kd3 {[%clk 0:01:06]}  Rc5 {[%clk 0:01:59]} 27. Bb3 {[%clk 0:01:04]}  Ra3 {[%clk 0:01:58]} 28. Kc2 {[%clk 0:01:03]}  Kf8 {[%clk 0:01:05]} 29. Kb2 {[%clk 0:00:57]}  Rxc3 {[%clk 0:01:02]} 30. Kxc3 {[%clk 0:00:56]}  Bd7 {[%clk 0:01:01]} 31. Kb4 {[%clk 0:00:54]}  Ra8 {[%clk 0:01:01]} 32. f4 {[%clk 0:00:51]}  b6 {[%clk 0:01:01]} 33. g4 {[%clk 0:00:48]}  Ke7 {[%clk 0:01:00]} 34. f5 {[%clk 0:00:47]}  c5+ {[%clk 0:00:58]} 35. Kc3 {[%clk 0:00:46]}  exf5 {[%clk 0:00:55]} 36. gxf5 {[%clk 0:00:46]}  b5 {[%clk 0:00:44]} 37. f6+ {[%clk 0:00:45]}  gxf6 {[%clk 0:00:44]} 38. exf6+ {[%clk 0:00:45]}  Kf8 {[%clk 0:00:41]} 39. Rg1 {[%clk 0:00:44]}  c4 {[%clk 0:00:39]} 40. Bc2 {[%clk 0:00:40]}  Ra6 {[%clk 0:00:38]} 41. Bxh7 {[%clk 0:00:34]}  Rxf6 {[%clk 0:00:38]} 42. Kb4 {[%clk 0:00:32]}  Rh6 {[%clk 0:00:36]} 43. Be4 {[%clk 0:00:22]}  Rxh2 {[%clk 0:00:34]} 44. Rf1 {[%clk 0:00:21]}  Ke7 {[%clk 0:00:33]} 45. Bd5 {[%clk 0:00:19]}  Rb2+ {[%clk 0:00:31]} 46. Kc5 {[%clk 0:00:18]}  Be6 {[%clk 0:00:31]} 47. Bc6 {[%clk 0:00:12]}  b4 {[%clk 0:00:31]} 48. Kd4 {[%clk 0:00:10]}  c3 {[%clk 0:00:30]} 49. Ba4 {[%clk 0:00:05]}  Rd2+ {[%clk 0:00:30]} 50. Ke3 {[%clk 0:00:04]}  Ra2 {[%clk 0:00:30]} 0-1


[Site "https://www.chess.com"]

[Event "Titled Tuesday Blitz April 26 Late 2022"]
[White "Mickiewicz, Piotr"]
[Black "Mardov, Dimitar"]
[WhiteFideId "1114891"]
[BlackFideId "30919495"]
[WhiteElo "2266"]
[BlackElo "2185"]
[Result "0-1"]
[Round "01"]
[TimeControl "180+1"]
[Date "2022.04.26"]
[WhiteClock "0:00:04"]
[BlackClock "0:01:38"]

1. e4 {[%clk 0:02:56]}  c5 {[%clk 0:02:59]} 2. Nf3 {[%clk 0:02:56]}  e6 {[%clk 0:02:59]} 3. d4 {[%clk 0:02:57]}  cxd4 {[%clk 0:03:00]} 4. Nxd4 {[%clk 0:02:57]}  a6 {[%clk 0:03:01]} 5. Bd3 {[%clk 0:02:56]}  Qc7 {[%clk 0:03:00]} 6. Qe2 {[%clk 0:02:54]}  Nf6 {[%clk 0:02:59]} 7. e5 {[%clk 0:02:52]}  Nd5 {[%clk 0:02:58]} 8. a3 {[%clk 0:02:42]}  Nc6 {[%clk 0:02:54]} 9. Nxc6 {[%clk 0:02:38]}  bxc6 {[%clk 0:02:54]} 10. c4 {[%clk 0:02:36]}  Nb6 {[%clk 0:02:54]} 11. O-O {[%clk 0:02:19]}  Be7 {[%clk 0:02:53]} 12. Nc3 {[%clk 0:02:16]}  O-O {[%clk 0:02:50]} 13. Qe4 {[%clk 0:02:00]}  g6 {[%clk 0:02:44]} 14. Bh6 {[%clk 0:01:58]}  Bb7 {[%clk 0:02:31]} 15. Bxf8 {[%clk 0:01:56]}  Rxf8 {[%clk 0:02:32]} 16. Qe2 {[%clk 0:01:52]}  f5 {[%clk 0:02:30]} 17. f4 {[%clk 0:01:41]}  c5 {[%clk 0:02:29]} 18. Rab1 {[%clk 0:01:23]}  Rb8 {[%clk 0:02:16]} 19. b4 {[%clk 0:01:21]}  cxb4 {[%clk 0:02:17]} 20. axb4 {[%clk 0:01:20]}  Bxb4 {[%clk 0:02:07]} 21. Rxb4 {[%clk 0:00:44]}  Qc5+ {[%clk 0:02:00]} 22. Qf2 {[%clk 0:00:10]}  Qxb4 {[%clk 0:01:59]} 23. Ne2 {[%clk 0:00:11]}  Na4 {[%clk 0:01:39]} 24. Rb1 {[%clk 0:00:09]}  Qc5 {[%clk 0:01:40]} 25. h4 {[%clk 0:00:03]}  Qxf2+ {[%clk 0:01:38]} 26. Kxf2 {[%clk 0:00:04]}  Nc5 {[%clk 0:01:39]} 27. Ke3 {[%clk 0:00:04]}  Nxd3 {[%clk 0:01:38]} 0-1


[Site "https://www.chess.com"]

[Event "Titled Tuesday Blitz April 26 Late 2022"]
[White "Mirza, Diana"]
[Black "Pesotskiy, Mikhail"]
[WhiteFideId "2503999"]
[BlackFideId "34164453"]
[WhiteElo "1813"]
[BlackElo "2010"]
[Result "0-1"]
[Round "01"]
[TimeControl "180+1"]
[Date "2022.04.26"]
[WhiteClock "0:00:03"]
[BlackClock "0:00:48"]

1. d4 {[%clk 0:02:55]}  Nf6 {[%clk 0:03:00]} 2. Nf3 {[%clk 0:02:52]}  e6 {[%clk 0:02:59]} 3. e3 {[%clk 0:02:52]}  b6 {[%clk 0:02:58]} 4. Bd3 {[%clk 0:02:52]}  Bb7 {[%clk 0:02:59]} 5. b3 {[%clk 0:02:52]}  c5 {[%clk 0:02:57]} 6. Bb2 {[%clk 0:02:52]}  Be7 {[%clk 0:02:57]} 7. Nbd2 {[%clk 0:02:52]}  O-O {[%clk 0:02:58]} 8. O-O {[%clk 0:02:50]}  Nc6 {[%clk 0:02:58]} 9. e4 {[%clk 0:02:42]}  cxd4 {[%clk 0:02:57]} 10. Nxd4 {[%clk 0:02:42]}  Nxd4 {[%clk 0:02:52]} 11. Bxd4 {[%clk 0:02:43]}  d6 {[%clk 0:02:50]} 12. f4 {[%clk 0:02:36]}  Rc8 {[%clk 0:02:37]} 13. Rf3 {[%clk 0:02:24]}  Qc7 {[%clk 0:02:25]} 14. Rh3 {[%clk 0:02:20]}  e5 {[%clk 0:02:24]} 15. fxe5 {[%clk 0:02:13]}  dxe5 {[%clk 0:02:25]} 16. Bb2 {[%clk 0:02:12]}  Bc5+ {[%clk 0:02:17]} 17. Kh1 {[%clk 0:02:11]}  Bd4 {[%clk 0:02:18]} 18. c3 {[%clk 0:01:46]}  Bxc3 {[%clk 0:02:11]} 19. Rc1 {[%clk 0:01:45]}  Bxb2 {[%clk 0:02:12]} 20. Rxc7 {[%clk 0:01:45]}  Rxc7 {[%clk 0:02:12]} 21. Nc4 {[%clk 0:01:44]}  Bd4 {[%clk 0:02:11]} 22. Nd6 {[%clk 0:01:27]}  Ba8 {[%clk 0:02:03]} 23. g4 {[%clk 0:01:18]}  Rd7 {[%clk 0:01:56]} 24. Nf5 {[%clk 0:01:02]}  Nxe4 {[%clk 0:01:49]} 25. Bxe4 {[%clk 0:00:45]}  Bxe4+ {[%clk 0:01:50]} 26. Rf3 {[%clk 0:00:44]}  Rc8 {[%clk 0:00:58]} 27. Kg2 {[%clk 0:00:08]}  Rc3 {[%clk 0:00:46]} 28. Nxd4 {[%clk 0:00:03]}  exd4 {[%clk 0:00:46]} 29. Qe2 {[%clk 0:00:02]}  Bxf3+ {[%clk 0:00:46]} 30. Qxf3 {[%clk 0:00:02]}  Rxf3 {[%clk 0:00:47]} 31. Kxf3 {[%clk 0:00:03]}  d3 {[%clk 0:00:48]} 0-1


[Site "https://www.chess.com"]

[Event "Titled Tuesday Blitz April 26 Late 2022"]
[White "Nakamura, Hikaru"]
[Black "Guz, Ari"]
[WhiteFideId "2016192"]
[BlackFideId "2825759"]
[WhiteElo "2850"]
[BlackElo "1913"]
[Result "1-0"]
[Round "01"]
[TimeControl "180+1"]
[Date "2022.04.26"]
[WhiteClock "0:01:12"]
[BlackClock "0:00:19"]

1. Nf3 {[%clk 0:03:00]}  Nf6 {[%clk 0:02:59]} 2. b3 {[%clk 0:03:01]}  b6 {[%clk 0:02:59]} 3. Bb2 {[%clk 0:02:59]}  Bb7 {[%clk 0:03:00]} 4. g3 {[%clk 0:02:58]}  e6 {[%clk 0:03:00]} 5. Bg2 {[%clk 0:02:59]}  Be7 {[%clk 0:03:00]} 6. d4 {[%clk 0:02:58]}  O-O {[%clk 0:03:00]} 7. O-O {[%clk 0:02:58]}  d6 {[%clk 0:02:57]} 8. c4 {[%clk 0:02:58]}  Nbd7 {[%clk 0:02:54]} 9. Nc3 {[%clk 0:02:54]}  Ne4 {[%clk 0:02:44]} 10. Qc2 {[%clk 0:02:51]}  Ndf6 {[%clk 0:02:43]} 11. Nd1 {[%clk 0:02:50]}  c5 {[%clk 0:02:32]} 12. dxc5 {[%clk 0:02:47]}  Nxc5 {[%clk 0:02:16]} 13. b4 {[%clk 0:02:35]}  Ncd7 {[%clk 0:02:14]} 14. Ne3 {[%clk 0:02:31]}  Rc8 {[%clk 0:02:15]} 15. Qb3 {[%clk 0:02:30]}  d5 {[%clk 0:02:00]} 16. cxd5 {[%clk 0:02:29]}  Nxd5 {[%clk 0:02:00]} 17. a3 {[%clk 0:02:29]}  Bf6 {[%clk 0:01:59]} 18. Ng4 {[%clk 0:02:26]}  Bxb2 {[%clk 0:01:41]} 19. Qxb2 {[%clk 0:02:27]}  h5 {[%clk 0:01:22]} 20. Nge5 {[%clk 0:02:26]}  Qf6 {[%clk 0:01:23]} 21. e4 {[%clk 0:02:02]}  Nxe5 {[%clk 0:01:16]} 22. Nxe5 {[%clk 0:02:03]}  Nc3 {[%clk 0:01:17]} 23. Nd7 {[%clk 0:02:01]}  Qd4 {[%clk 0:00:36]} 24. Nxf8 {[%clk 0:02:00]}  Kxf8 {[%clk 0:00:37]} 25. Rac1 {[%clk 0:01:56]}  Ba6 {[%clk 0:00:34]} 26. Rc2 {[%clk 0:01:27]}  Bxf1 {[%clk 0:00:32]} 27. Bxf1 {[%clk 0:01:28]}  e5 {[%clk 0:00:29]} 28. Qc1 {[%clk 0:01:25]}  h4 {[%clk 0:00:29]} 29. Qe1 {[%clk 0:01:17]}  hxg3 {[%clk 0:00:29]} 30. hxg3 {[%clk 0:01:18]}  Rc7 {[%clk 0:00:29]} 31. Bg2 {[%clk 0:01:16]}  Kg8 {[%clk 0:00:29]} 32. Rd2 {[%clk 0:01:16]}  Qc4 {[%clk 0:00:28]} 33. Rd8+ {[%clk 0:01:16]}  Kh7 {[%clk 0:00:29]} 34. Bf3 {[%clk 0:01:17]}  g6 {[%clk 0:00:27]} 35. Kg2 {[%clk 0:01:17]}  Kg7 {[%clk 0:00:27]} 36. Qh1 {[%clk 0:01:17]}  Kf6 {[%clk 0:00:21]} 37. Qh4+ {[%clk 0:01:17]}  Ke6 {[%clk 0:00:19]} 38. Bg4+ {[%clk 0:01:10]}  f5 {[%clk 0:00:19]} 39. Bxf5+ {[%clk 0:01:11]}  gxf5 {[%clk 0:00:20]} 40. Qh6+ {[%clk 0:01:11]}  Kf7 {[%clk 0:00:19]} 41. Rf8+ {[%clk 0:01:11]}  Ke7 {[%clk 0:00:19]} 42. Qf6+ {[%clk 0:01:12]} 1-0


[Site "https://www.chess.com"]

[Event "Titled Tuesday Blitz April 26 Late 2022"]
[White "Ohanyan, Emin"]
[Black "Vidonyak, Roman"]
[WhiteFideId "13312022"]
[BlackFideId "14100622"]
[WhiteElo "1927"]
[BlackElo "2397"]
[Result "1-0"]
[Round "01"]
[TimeControl "180+1"]
[Date "2022.04.26"]
[WhiteClock "0:01:25"]
[BlackClock "0:01:13"]

1. e4 {[%clk 0:03:00]}  c5 {[%clk 0:02:52]} 2. Nf3 {[%clk 0:03:00]}  d6 {[%clk 0:02:52]} 3. d4 {[%clk 0:03:00]}  cxd4 {[%clk 0:02:53]} 4. Nxd4 {[%clk 0:03:00]}  Nf6 {[%clk 0:02:53]} 5. Nc3 {[%clk 0:03:00]}  a6 {[%clk 0:02:54]} 6. Bc4 {[%clk 0:03:00]}  e6 {[%clk 0:02:51]} 7. Bb3 {[%clk 0:03:00]}  Nbd7 {[%clk 0:02:33]} 8. f4 {[%clk 0:02:59]}  Nc5 {[%clk 0:02:32]} 9. f5 {[%clk 0:03:00]}  Be7 {[%clk 0:02:29]} 10. fxe6 {[%clk 0:02:59]}  fxe6 {[%clk 0:02:27]} 11. O-O {[%clk 0:02:59]}  Nxb3 {[%clk 0:02:25]} 12. axb3 {[%clk 0:02:57]}  O-O {[%clk 0:02:24]} 13. Qd3 {[%clk 0:02:57]}  Bd7 {[%clk 0:02:23]} 14. Be3 {[%clk 0:02:53]}  Qe8 {[%clk 0:02:23]} 15. h3 {[%clk 0:02:47]}  Qg6 {[%clk 0:02:22]} 16. Bf2 {[%clk 0:02:46]}  Nh5 {[%clk 0:02:21]} 17. Nde2 {[%clk 0:02:46]}  Rae8 {[%clk 0:02:16]} 18. Rad1 {[%clk 0:02:42]}  Kh8 {[%clk 0:02:14]} 19. e5 {[%clk 0:02:06]}  Qxd3 {[%clk 0:02:11]} 20. Rxd3 {[%clk 0:02:07]}  d5 {[%clk 0:02:08]} 21. Be3 {[%clk 0:02:07]}  Rxf1+ {[%clk 0:02:07]} 22. Kxf1 {[%clk 0:02:08]}  Rf8+ {[%clk 0:02:06]} 23. Kg1 {[%clk 0:02:05]}  g6 {[%clk 0:01:58]} 24. g4 {[%clk 0:02:04]}  Ng7 {[%clk 0:01:58]} 25. Nd4 {[%clk 0:01:52]}  h5 {[%clk 0:01:50]} 26. Nce2 {[%clk 0:01:48]}  hxg4 {[%clk 0:01:39]} 27. hxg4 {[%clk 0:01:48]}  g5 {[%clk 0:01:39]} 28. Rc3 {[%clk 0:01:42]}  Rc8 {[%clk 0:01:32]} 29. Rxc8+ {[%clk 0:01:38]}  Bxc8 {[%clk 0:01:33]} 30. Nf3 {[%clk 0:01:38]}  Kh7 {[%clk 0:01:16]} 31. Bxg5 {[%clk 0:01:26]}  Bc5+ {[%clk 0:01:15]} 32. Kg2 {[%clk 0:01:25]}  Kg6 {[%clk 0:01:15]} 33. Nf4+ {[%clk 0:01:24]}  Kf7 {[%clk 0:01:14]} 34. Bf6 {[%clk 0:01:24]}  Ne8 {[%clk 0:01:13]} 35. Ng5+ {[%clk 0:01:25]} 1-0


[Site "https://www.chess.com"]